[Event "Titled Tuesday Blitz June 27 Late 2023"]
[White "Vdovin, Vadim"]
[Black "Elsa167"]
[WhiteFideId "24107158"]
[WhiteElo "2603"]
[BlackElo "2864"]
[Result "0-1"]
[Round "3"]
[TimeControl "180+2"]
[Date "2023.06.27"]
[WhiteClock "0:00:00"]
[BlackClock "0:00:33"]
[Board "34"]

1. e4 {[%clk 0:02:56]}  c5 {[%clk 0:02:59]} 2. Nf3 {[%clk 0:02:54]}  e6 {[%clk 0:03:00]} 3. g3 {[%clk 0:02:54]}  Nc6 {[%clk 0:02:58]} 4. Bg2 {[%clk 0:02:54]}  Nf6 {[%clk 0:02:57]} 5. Qe2 {[%clk 0:02:54]}  e5 {[%clk 0:02:57]} 6. O-O {[%clk 0:02:54]}  d6 {[%clk 0:02:55]} 7. d3 {[%clk 0:02:54]}  g6 {[%clk 0:02:55]} 8. a4 {[%clk 0:02:55]}  Bg7 {[%clk 0:02:55]} 9. Na3 {[%clk 0:02:52]}  O-O {[%clk 0:02:54]} 10. Bg5 {[%clk 0:02:49]}  Bg4 {[%clk 0:02:50]} 11. Nc4 {[%clk 0:02:43]}  Nd4 {[%clk 0:02:49]} 12. Qd1 {[%clk 0:02:43]}  h6 {[%clk 0:02:47]} 13. Bd2 {[%clk 0:02:28]}  Re8 {[%clk 0:02:37]} 14. Ne3 {[%clk 0:02:17]}  Nxf3+ {[%clk 0:02:31]} 15. Bxf3 {[%clk 0:02:16]}  Bh3 {[%clk 0:02:31]} 16. Re1 {[%clk 0:02:07]}  Qd7 {[%clk 0:02:28]} 17. Kh1 {[%clk 0:01:47]}  h5 {[%clk 0:02:27]} 18. Rg1 {[%clk 0:01:42]}  Be6 {[%clk 0:02:23]} 19. c4 {[%clk 0:01:41]}  Ng4 {[%clk 0:02:14]} 20. Bxg4 {[%clk 0:01:11]}  hxg4 {[%clk 0:02:15]} 21. Rf1 {[%clk 0:01:05]}  f5 {[%clk 0:02:15]} 22. f3 {[%clk 0:00:58]}  gxf3 {[%clk 0:02:01]} 23. Qxf3 {[%clk 0:00:51]}  Rf8 {[%clk 0:02:01]} 24. exf5 {[%clk 0:00:33]}  gxf5 {[%clk 0:02:01]} 25. Nd5 {[%clk 0:00:30]}  Rae8 {[%clk 0:01:54]} 26. Bc3 {[%clk 0:00:22]}  Qf7 {[%clk 0:01:46]} 27. Rae1 {[%clk 0:00:20]}  Bxd5 {[%clk 0:01:38]} 28. Qxd5 {[%clk 0:00:17]}  Qxd5+ {[%clk 0:01:38]} 29. cxd5 {[%clk 0:00:18]}  Kh7 {[%clk 0:01:26]} 30. Kg2 {[%clk 0:00:18]}  Kg6 {[%clk 0:01:27]} 31. Re2 {[%clk 0:00:16]}  Rf7 {[%clk 0:01:23]} 32. Ref2 {[%clk 0:00:16]}  Bh6 {[%clk 0:01:22]} 33. g4 {[%clk 0:00:14]}  Bf4 {[%clk 0:01:22]} 34. h3 {[%clk 0:00:12]}  Rh7 {[%clk 0:01:09]} 35. Bd2 {[%clk 0:00:03]}  Bxd2 {[%clk 0:00:49]} 36. Rxd2 {[%clk 0:00:03]}  f4 {[%clk 0:00:36]} 37. Rdf2 {[%clk 0:00:01]}  Kg5 {[%clk 0:00:36]} 38. Rf3 {[%clk 0:00:01]}  b5 {[%clk 0:00:34]} 39. Ra1 {[%clk 0:00:01]}  Rb8 {[%clk 0:00:33]} 40. axb5 {[%clk 0:00:01]}  Rxb5 {[%clk 0:00:34]} 41. Rxa7 {[%clk 0:00:02]}  Rxb2+ {[%clk 0:00:33]} 42. Kg1 {[%clk 0:00:00]}  Rxa7 {[%clk 0:00:33]} 0-1


[Site "https://www.chess.com"]

[Event "Titled Tuesday Blitz June 27 Late 2023"]
[White "Licznerski, Lukasz"]
[Black "Ballester Llagaria, Luis Eduardo"]
[WhiteFideId "1179250"]
[BlackFideId "2297620"]
[WhiteElo "2859"]
[BlackElo "2594"]
[Result "1-0"]
[Round "3"]
[TimeControl "180+2"]
[Date "2023.06.27"]
[WhiteClock "0:00:04"]
[BlackClock "0:00:14"]
[Board "35"]

1. e4 {[%clk 0:03:00]}  c5 {[%clk 0:02:58]} 2. Nf3 {[%clk 0:03:00]}  e6 {[%clk 0:02:59]} 3. d4 {[%clk 0:03:00]}  cxd4 {[%clk 0:03:00]} 4. Nxd4 {[%clk 0:03:01]}  Nc6 {[%clk 0:03:01]} 5. Nc3 {[%clk 0:03:00]}  Qc7 {[%clk 0:03:00]} 6. Be3 {[%clk 0:02:59]}  a6 {[%clk 0:03:01]} 7. Qd2 {[%clk 0:02:54]}  Nf6 {[%clk 0:03:00]} 8. f3 {[%clk 0:02:53]}  Be7 {[%clk 0:03:01]} 9. g4 {[%clk 0:02:51]}  O-O {[%clk 0:02:51]} 10. g5 {[%clk 0:02:41]}  Ne8 {[%clk 0:02:50]} 11. O-O-O {[%clk 0:02:38]}  b5 {[%clk 0:02:50]} 12. Nxc6 {[%clk 0:02:33]}  dxc6 {[%clk 0:02:47]} 13. h4 {[%clk 0:02:29]}  e5 {[%clk 0:02:21]} 14. Kb1 {[%clk 0:02:18]}  Be6 {[%clk 0:02:20]} 15. Bh3 {[%clk 0:02:10]}  Rd8 {[%clk 0:02:13]} 16. Qe2 {[%clk 0:02:01]}  Nd6 {[%clk 0:02:01]} 17. b3 {[%clk 0:01:39]}  Nb7 {[%clk 0:01:51]} 18. Bxe6 {[%clk 0:01:22]}  fxe6 {[%clk 0:01:49]} 19. Qg2 {[%clk 0:01:11]}  Bc5 {[%clk 0:01:35]} 20. Bc1 {[%clk 0:01:07]}  Bd4 {[%clk 0:01:32]} 21. Ne2 {[%clk 0:01:07]}  b4 {[%clk 0:01:23]} 22. Qg4 {[%clk 0:01:06]}  Nc5 {[%clk 0:01:21]} 23. h5 {[%clk 0:00:27]}  Qf7 {[%clk 0:01:17]} 24. Rhf1 {[%clk 0:00:26]}  Qe7 {[%clk 0:00:43]} 25. a4 {[%clk 0:00:24]}  bxa3 {[%clk 0:00:23]} 26. Bxa3 {[%clk 0:00:23]}  a5 {[%clk 0:00:24]} 27. g6 {[%clk 0:00:11]}  h6 {[%clk 0:00:24]} 28. Nxd4 {[%clk 0:00:11]}  exd4 {[%clk 0:00:24]} 29. Bxc5 {[%clk 0:00:11]}  Qxc5 {[%clk 0:00:25]} 30. Qxe6+ {[%clk 0:00:12]}  Kh8 {[%clk 0:00:26]} 31. Qc4 {[%clk 0:00:05]}  Qxc4 {[%clk 0:00:24]} 32. bxc4 {[%clk 0:00:05]}  c5 {[%clk 0:00:25]} 33. f4 {[%clk 0:00:05]}  Rb8+ {[%clk 0:00:25]} 34. Kc1 {[%clk 0:00:05]}  Rb4 {[%clk 0:00:26]} 35. f5 {[%clk 0:00:04]}  Re8 {[%clk 0:00:21]} 36. Rde1 {[%clk 0:00:04]}  Rxc4 {[%clk 0:00:20]} 37. Kd2 {[%clk 0:00:04]}  Rb4 {[%clk 0:00:17]} 38. e5 {[%clk 0:00:04]}  Rb6 {[%clk 0:00:17]} 39. f6 {[%clk 0:00:05]}  gxf6 {[%clk 0:00:18]} 40. exf6 {[%clk 0:00:03]}  Rxe1 {[%clk 0:00:18]} 41. Kxe1 {[%clk 0:00:04]}  Rb1+ {[%clk 0:00:16]} 42. Ke2 {[%clk 0:00:03]}  Rxf1 {[%clk 0:00:17]} 43. Kxf1 {[%clk 0:00:03]}  a4 {[%clk 0:00:17]} 44. Ke2 {[%clk 0:00:03]}  a3 {[%clk 0:00:17]} 45. Kd3 {[%clk 0:00:04]}  a2 {[%clk 0:00:17]} 46. Ke4 {[%clk 0:00:04]}  a1=Q {[%clk 0:00:17]} 47. Kf5 {[%clk 0:00:04]}  Kg8 {[%clk 0:00:14]} 48. Ke6 {[%clk 0:00:03]}  Qa2+ {[%clk 0:00:14]} 49. Ke7 {[%clk 0:00:03]}  Qxc2 {[%clk 0:00:14]} 50. f7+ {[%clk 0:00:03]}  Kh8 {[%clk 0:00:14]} 51. f8=Q# {[%clk 0:00:04]} 1-0


[Site "https://www.chess.com"]

[Event "Titled Tuesday Blitz June 27 Late 2023"]
[White "Morefield, Jason"]
[Black "Bernado Lopez, Roger"]
[WhiteFideId "30920825"]
[BlackFideId "24585009"]
[WhiteElo "2769"]
[BlackElo "2350"]
[Result "1-0"]
[Round "3"]
[TimeControl "180+2"]
[Date "2023.06.27"]
[WhiteClock "0:00:07"]
[BlackClock "0:00:03"]
[Board "42"]

1. d4 {[%clk 0:03:00]}  d5 {[%clk 0:02:59]} 2. c4 {[%clk 0:03:00]}  e6 {[%clk 0:03:00]} 3. Nc3 {[%clk 0:03:00]}  h6 {[%clk 0:03:00]} 4. cxd5 {[%clk 0:02:58]}  exd5 {[%clk 0:03:00]} 5. Bf4 {[%clk 0:02:59]}  Nf6 {[%clk 0:02:58]} 6. e3 {[%clk 0:02:58]}  Bf5 {[%clk 0:02:58]} 7. Qb3 {[%clk 0:02:57]}  Bc8 {[%clk 0:02:23]} 8. Rc1 {[%clk 0:02:43]}  c6 {[%clk 0:02:22]} 9. Nf3 {[%clk 0:02:38]}  Bd6 {[%clk 0:02:20]} 10. Bxd6 {[%clk 0:02:16]}  Qxd6 {[%clk 0:02:20]} 11. Ne5 {[%clk 0:02:16]}  O-O {[%clk 0:02:18]} 12. Bd3 {[%clk 0:02:15]}  Nbd7 {[%clk 0:02:15]} 13. f4 {[%clk 0:02:15]}  c5 {[%clk 0:02:00]} 14. Nb5 {[%clk 0:02:13]}  Qe7 {[%clk 0:01:58]} 15. Qa3 {[%clk 0:02:07]}  b6 {[%clk 0:01:42]} 16. O-O {[%clk 0:01:56]}  Bb7 {[%clk 0:01:41]} 17. Bf5 {[%clk 0:01:34]}  Rfd8 {[%clk 0:01:33]} 18. Rfd1 {[%clk 0:01:08]}  a6 {[%clk 0:01:26]} 19. Nc3 {[%clk 0:01:08]}  b5 {[%clk 0:01:16]} 20. Qa5 {[%clk 0:01:00]}  c4 {[%clk 0:00:51]} 21. b4 {[%clk 0:00:43]}  Nf8 {[%clk 0:00:49]} 22. a4 {[%clk 0:00:37]}  g6 {[%clk 0:00:44]} 23. Bh3 {[%clk 0:00:35]}  bxa4 {[%clk 0:00:31]} 24. Nxa4 {[%clk 0:00:34]}  Ne4 {[%clk 0:00:30]} 25. Nc5 {[%clk 0:00:24]}  Nxc5 {[%clk 0:00:29]} 26. Qxc5 {[%clk 0:00:18]}  Qxc5 {[%clk 0:00:27]} 27. bxc5 {[%clk 0:00:17]}  f6 {[%clk 0:00:27]} 28. Nf3 {[%clk 0:00:12]}  Bc6 {[%clk 0:00:26]} 29. Rb1 {[%clk 0:00:11]}  Bb5 {[%clk 0:00:26]} 30. Rdc1 {[%clk 0:00:08]}  Kf7 {[%clk 0:00:25]} 31. Kf2 {[%clk 0:00:08]}  f5 {[%clk 0:00:25]} 32. Ng1 {[%clk 0:00:08]}  Nd7 {[%clk 0:00:23]} 33. g3 {[%clk 0:00:08]}  Nf6 {[%clk 0:00:23]} 34. Bg2 {[%clk 0:00:08]}  Re8 {[%clk 0:00:22]} 35. h3 {[%clk 0:00:08]}  h5 {[%clk 0:00:22]} 36. Ne2 {[%clk 0:00:06]}  Rab8 {[%clk 0:00:17]} 37. Nc3 {[%clk 0:00:06]}  Bc6 {[%clk 0:00:18]} 38. Bf3 {[%clk 0:00:03]}  a5 {[%clk 0:00:16]} 39. Ra1 {[%clk 0:00:03]}  Ra8 {[%clk 0:00:09]} 40. Rcb1 {[%clk 0:00:03]}  a4 {[%clk 0:00:10]} 41. Rb6 {[%clk 0:00:03]}  Rec8 {[%clk 0:00:10]} 42. Rxc6 {[%clk 0:00:03]}  Rxc6 {[%clk 0:00:10]} 43. Nxd5 {[%clk 0:00:04]}  Rcc8 {[%clk 0:00:06]} 44. Nb6 {[%clk 0:00:04]}  Rab8 {[%clk 0:00:05]} 45. Nxc8 {[%clk 0:00:04]}  Rxc8 {[%clk 0:00:06]} 46. Rxa4 {[%clk 0:00:04]}  c3 {[%clk 0:00:06]} 47. Rc4 {[%clk 0:00:04]}  Rb8 {[%clk 0:00:05]} 48. Rxc3 {[%clk 0:00:05]}  Rb2+ {[%clk 0:00:05]} 49. Ke1 {[%clk 0:00:05]}  Rb1+ {[%clk 0:00:05]} 50. Kd2 {[%clk 0:00:05]}  Rb2+ {[%clk 0:00:06]} 51. Rc2 {[%clk 0:00:06]}  Rb3 {[%clk 0:00:06]} 52. c6 {[%clk 0:00:06]}  Rb8 {[%clk 0:00:06]} 53. c7 {[%clk 0:00:07]}  Rc8 {[%clk 0:00:03]} 54. Bb7 {[%clk 0:00:07]} 1-0


[Site "https://www.chess.com"]

[Event "Titled Tuesday Blitz June 27 Late 2023"]
[White "Grischuk, Alexander"]
[Black "Fernandez, Daniel"]
[WhiteFideId "4126025"]
[BlackFideId "2015390"]
[WhiteElo "3018"]
[BlackElo "2718"]
[Result "1-0"]
[Round "3"]
[TimeControl "180+2"]
[Date "2023.06.27"]
[WhiteClock "0:02:00"]
[BlackClock "0:00:09"]
[Board "43"]

1. e4 {[%clk 0:02:58]}  c5 {[%clk 0:02:58]} 2. Nc3 {[%clk 0:02:58]}  a6 {[%clk 0:02:54]} 3. Nf3 {[%clk 0:02:56]}  d6 {[%clk 0:02:52]} 4. g3 {[%clk 0:02:55]}  b5 {[%clk 0:02:52]} 5. d4 {[%clk 0:02:48]}  cxd4 {[%clk 0:02:51]} 6. Nxd4 {[%clk 0:02:49]}  Bb7 {[%clk 0:02:51]} 7. Bg2 {[%clk 0:02:50]}  Nf6 {[%clk 0:02:36]} 8. O-O {[%clk 0:02:49]}  e6 {[%clk 0:02:33]} 9. Re1 {[%clk 0:02:49]}  Nbd7 {[%clk 0:02:27]} 10. a4 {[%clk 0:02:49]}  b4 {[%clk 0:02:27]} 11. Nd5 {[%clk 0:02:49]}  a5 {[%clk 0:02:18]} 12. Bg5 {[%clk 0:02:39]}  h6 {[%clk 0:01:40]} 13. Bxf6 {[%clk 0:02:37]}  Nxf6 {[%clk 0:01:39]} 14. Nxf6+ {[%clk 0:02:36]}  gxf6 {[%clk 0:01:38]} 15. Qh5 {[%clk 0:02:33]}  Ke7 {[%clk 0:01:19]} 16. Nf5+ {[%clk 0:02:29]}  Ke8 {[%clk 0:01:12]} 17. Nd4 {[%clk 0:02:24]}  Ke7 {[%clk 0:01:10]} 18. e5 {[%clk 0:02:10]}  Bxg2 {[%clk 0:00:28]} 19. Kxg2 {[%clk 0:02:04]}  Qd7 {[%clk 0:00:16]} 20. exd6+ {[%clk 0:02:02]}  Kd8 {[%clk 0:00:16]} 21. Qf3 {[%clk 0:02:01]}  Rc8 {[%clk 0:00:09]} 22. Qxf6+ {[%clk 0:02:00]} 1-0


[Site "https://www.chess.com"]

[Event "Titled Tuesday Blitz June 27 Late 2023"]
[White "Janaszak, Dawid"]
[Black "Ter-Sahakyan, Samvel"]
[WhiteFideId "1119206"]
[BlackFideId "13302531"]
[WhiteElo "2572"]
[BlackElo "2904"]
[Result "0-1"]
[Round "3"]
[TimeControl "180+2"]
[Date "2023.06.27"]
[WhiteClock "0:00:00"]
[BlackClock "0:00:41"]
[Board "45"]

1. e4 {[%clk 0:03:00]}  c5 {[%clk 0:02:59]} 2. Nc3 {[%clk 0:03:00]}  d6 {[%clk 0:02:58]} 3. f4 {[%clk 0:03:00]}  g6 {[%clk 0:02:58]} 4. Nf3 {[%clk 0:03:00]}  Bg7 {[%clk 0:02:58]} 5. Bc4 {[%clk 0:03:00]}  Nc6 {[%clk 0:02:58]} 6. O-O {[%clk 0:03:00]}  e6 {[%clk 0:02:58]} 7. d4 {[%clk 0:02:57]}  cxd4 {[%clk 0:02:52]} 8. Nb5 {[%clk 0:02:57]}  a6 {[%clk 0:02:49]} 9. Nbxd4 {[%clk 0:02:57]}  Nf6 {[%clk 0:02:48]} 10. Nxc6 {[%clk 0:02:38]}  bxc6 {[%clk 0:02:48]} 11. e5 {[%clk 0:02:39]}  Nd5 {[%clk 0:02:41]} 12. Qe1 {[%clk 0:02:28]}  O-O {[%clk 0:02:39]} 13. Kh1 {[%clk 0:02:27]}  a5 {[%clk 0:02:39]} 14. b3 {[%clk 0:02:11]}  Nb4 {[%clk 0:02:31]} 15. Rf2 {[%clk 0:01:54]}  Bb7 {[%clk 0:02:20]} 16. Bb2 {[%clk 0:01:46]}  c5 {[%clk 0:02:16]} 17. c3 {[%clk 0:01:30]}  Nd5 {[%clk 0:02:15]} 18. Qd2 {[%clk 0:01:12]}  Qb6 {[%clk 0:02:12]} 19. Re1 {[%clk 0:01:04]}  Rfd8 {[%clk 0:02:11]} 20. Qc1 {[%clk 0:01:01]}  a4 {[%clk 0:02:11]} 21. Ng5 {[%clk 0:00:57]}  a3 {[%clk 0:01:49]} 22. Ba1 {[%clk 0:00:56]}  Nc7 {[%clk 0:01:48]} 23. Qe3 {[%clk 0:00:21]}  d5 {[%clk 0:01:34]} 24. Bf1 {[%clk 0:00:19]}  d4 {[%clk 0:01:31]} 25. cxd4 {[%clk 0:00:17]}  cxd4 {[%clk 0:01:31]} 26. Qh3 {[%clk 0:00:17]}  h6 {[%clk 0:01:31]} 27. Nf3 {[%clk 0:00:14]}  d3 {[%clk 0:01:25]} 28. Rd2 {[%clk 0:00:13]}  Ba6 {[%clk 0:01:21]} 29. Red1 {[%clk 0:00:13]}  Nd5 {[%clk 0:01:19]} 30. Qg3 {[%clk 0:00:06]}  Ne3 {[%clk 0:01:19]} 31. Re1 {[%clk 0:00:05]}  Nc2 {[%clk 0:01:15]} 32. Red1 {[%clk 0:00:05]}  Qe3 {[%clk 0:01:09]} 33. Qf2 {[%clk 0:00:03]}  Qxf4 {[%clk 0:01:01]} 34. Bxd3 {[%clk 0:00:03]}  Rxd3 {[%clk 0:00:57]} 35. Rxd3 {[%clk 0:00:04]}  Bxd3 {[%clk 0:00:57]} 36. Rxd3 {[%clk 0:00:04]}  Nxa1 {[%clk 0:00:57]} 37. g3 {[%clk 0:00:04]}  Qe4 {[%clk 0:00:55]} 38. Rd4 {[%clk 0:00:04]}  Qb7 {[%clk 0:00:49]} 39. Kg1 {[%clk 0:00:03]}  Nxb3 {[%clk 0:00:48]} 40. Rd1 {[%clk 0:00:01]}  Na5 {[%clk 0:00:44]} 41. Nd4 {[%clk 0:00:02]}  Nc4 {[%clk 0:00:43]} 42. Nb3 {[%clk 0:00:02]}  Nxe5 {[%clk 0:00:43]} 43. Nc5 {[%clk 0:00:00]}  Qf3 {[%clk 0:00:41]} 0-1


[Site "https://www.chess.com"]

[Event "Titled Tuesday Blitz June 27 Late 2023"]
[White "Czerw, Dawid"]
[Black "Perez Ponsa, Federico"]
[WhiteFideId "1145746"]
[BlackFideId "117927"]
[WhiteElo "2504"]
[BlackElo "2794"]
[Result "0-1"]
[Round "3"]
[TimeControl "180+2"]
[Date "2023.06.27"]
[WhiteClock "0:00:07"]
[BlackClock "0:00:16"]
[Board "48"]

1. e4 {[%clk 0:03:00]}  c5 {[%clk 0:02:45]} 2. Nf3 {[%clk 0:02:59]}  d6 {[%clk 0:02:42]} 3. d4 {[%clk 0:02:59]}  cxd4 {[%clk 0:02:43]} 4. Nxd4 {[%clk 0:03:00]}  Nf6 {[%clk 0:02:43]} 5. Nc3 {[%clk 0:03:00]}  a6 {[%clk 0:02:44]} 6. h4 {[%clk 0:03:01]}  e6 {[%clk 0:02:28]} 7. h5 {[%clk 0:02:54]}  Nc6 {[%clk 0:02:22]} 8. Nxc6 {[%clk 0:02:48]}  bxc6 {[%clk 0:02:20]} 9. e5 {[%clk 0:02:49]}  dxe5 {[%clk 0:02:19]} 10. Qxd8+ {[%clk 0:02:49]}  Kxd8 {[%clk 0:02:20]} 11. Na4 {[%clk 0:02:49]}  Rb8 {[%clk 0:02:10]} 12. a3 {[%clk 0:02:40]}  Kc7 {[%clk 0:02:07]} 13. Bd2 {[%clk 0:02:39]}  c5 {[%clk 0:01:54]} 14. Bc3 {[%clk 0:02:22]}  Bd6 {[%clk 0:01:46]} 15. O-O-O {[%clk 0:02:22]}  Rb5 {[%clk 0:01:27]} 16. Bxb5 {[%clk 0:02:13]}  axb5 {[%clk 0:01:27]} 17. Ba5+ {[%clk 0:02:13]}  Kc6 {[%clk 0:01:28]} 18. Nc3 {[%clk 0:02:09]}  b4 {[%clk 0:01:24]} 19. axb4 {[%clk 0:02:07]}  cxb4 {[%clk 0:01:25]} 20. Na4 {[%clk 0:01:57]}  Nd5 {[%clk 0:01:18]} 21. c4 {[%clk 0:01:45]}  bxc3 {[%clk 0:01:16]} 22. Nxc3 {[%clk 0:01:39]}  Ba6 {[%clk 0:01:07]} 23. Rh3 {[%clk 0:01:34]}  Ra8 {[%clk 0:01:05]} 24. Nxd5 {[%clk 0:01:19]}  exd5 {[%clk 0:01:05]} 25. Rc3+ {[%clk 0:01:19]}  Bc4 {[%clk 0:01:03]} 26. b3 {[%clk 0:01:04]}  Rxa5 {[%clk 0:00:54]} 27. bxc4 {[%clk 0:01:02]}  d4 {[%clk 0:00:51]} 28. Rf3 {[%clk 0:00:58]}  e4 {[%clk 0:00:29]} 29. Rxf7 {[%clk 0:00:25]}  Ra1+ {[%clk 0:00:28]} 30. Kc2 {[%clk 0:00:16]}  d3+ {[%clk 0:00:25]} 31. Rxd3 {[%clk 0:00:16]}  Ra2+ {[%clk 0:00:21]} 32. Kc3 {[%clk 0:00:12]}  Ra3+ {[%clk 0:00:18]} 33. Kd4 {[%clk 0:00:10]}  exd3 {[%clk 0:00:16]} 34. Ke3 {[%clk 0:00:10]}  Bc5+ {[%clk 0:00:15]} 35. Kd2 {[%clk 0:00:10]}  Bb4+ {[%clk 0:00:16]} 36. Ke3 {[%clk 0:00:10]}  d2+ {[%clk 0:00:16]} 37. Ke2 {[%clk 0:00:07]}  Ra1 {[%clk 0:00:16]} 0-1


[Site "https://www.chess.com"]

[Event "Titled Tuesday Blitz June 27 Late 2023"]
[White "Remolar Gallen, Jose"]
[Black "He, Anthony"]
[WhiteFideId "2215187"]
[BlackFideId "2088215"]
[WhiteElo "2456"]
[BlackElo "2993"]
[Result "0-1"]
[Round "3"]
[TimeControl "180+2"]
[Date "2023.06.27"]
[WhiteClock "0:00:00"]
[BlackClock "0:00:17"]
[Board "51"]

1. e4 {[%clk 0:03:00]}  c5 {[%clk 0:02:49]} 2. Nf3 {[%clk 0:03:01]}  Nc6 {[%clk 0:02:48]} 3. Bb5 {[%clk 0:03:00]}  g6 {[%clk 0:02:49]} 4. O-O {[%clk 0:02:59]}  Bg7 {[%clk 0:02:47]} 5. Re1 {[%clk 0:02:58]}  e5 {[%clk 0:02:45]} 6. a4 {[%clk 0:02:52]}  Nge7 {[%clk 0:02:45]} 7. Nc3 {[%clk 0:02:48]}  O-O {[%clk 0:02:43]} 8. Nd5 {[%clk 0:02:45]}  d6 {[%clk 0:02:42]} 9. c3 {[%clk 0:02:34]}  Nxd5 {[%clk 0:02:38]} 10. exd5 {[%clk 0:02:33]}  Ne7 {[%clk 0:02:39]} 11. d4 {[%clk 0:02:13]}  exd4 {[%clk 0:02:29]} 12. cxd4 {[%clk 0:02:13]}  Nxd5 {[%clk 0:02:28]} 13. Bg5 {[%clk 0:02:04]}  Nf6 {[%clk 0:02:16]} 14. dxc5 {[%clk 0:01:35]}  dxc5 {[%clk 0:02:17]} 15. Qc2 {[%clk 0:01:34]}  Qc7 {[%clk 0:02:12]} 16. Rac1 {[%clk 0:01:26]}  b6 {[%clk 0:02:11]} 17. b4 {[%clk 0:01:22]}  Bf5 {[%clk 0:02:11]} 18. Qb3 {[%clk 0:01:14]}  Ne4 {[%clk 0:02:06]} 19. Be3 {[%clk 0:01:12]}  Rac8 {[%clk 0:01:57]} 20. Nd4 {[%clk 0:00:37]}  cxd4 {[%clk 0:01:46]} 21. Rxc7 {[%clk 0:00:35]}  dxe3 {[%clk 0:01:46]} 22. f3 {[%clk 0:00:20]}  Rxc7 {[%clk 0:01:45]} 23. fxe4 {[%clk 0:00:20]}  Bxe4 {[%clk 0:01:44]} 24. Qxe3 {[%clk 0:00:20]}  f5 {[%clk 0:01:43]} 25. Rd1 {[%clk 0:00:13]}  Rfc8 {[%clk 0:01:43]} 26. Ba6 {[%clk 0:00:07]}  Rf8 {[%clk 0:01:37]} 27. Qf4 {[%clk 0:00:07]}  Rc2 {[%clk 0:01:35]} 28. Rd7 {[%clk 0:00:06]}  Rxg2+ {[%clk 0:01:35]} 29. Kf1 {[%clk 0:00:07]}  Rc2 {[%clk 0:01:30]} 30. Qd6 {[%clk 0:00:06]}  Rc1+ {[%clk 0:01:31]} 31. Ke2 {[%clk 0:00:06]}  Rc2+ {[%clk 0:01:26]} 32. Kd1 {[%clk 0:00:06]}  Bf6 {[%clk 0:00:32]} 33. Qe6+ {[%clk 0:00:05]}  Kh8 {[%clk 0:00:33]} 34. Bc4 {[%clk 0:00:06]}  Rxc4 {[%clk 0:00:20]} 35. Qxc4 {[%clk 0:00:06]}  Bg7 {[%clk 0:00:19]} 36. Qc7 {[%clk 0:00:06]}  Rg8 {[%clk 0:00:19]} 37. Qxa7 {[%clk 0:00:06]}  f4 {[%clk 0:00:20]} 38. Qxb6 {[%clk 0:00:04]}  f3 {[%clk 0:00:20]} 39. Qe3 {[%clk 0:00:04]}  Bc6 {[%clk 0:00:20]} 40. Rc7 {[%clk 0:00:02]}  Bxa4+ {[%clk 0:00:20]} 41. Ke1 {[%clk 0:00:01]}  Rf8 {[%clk 0:00:21]} 42. Kf2 {[%clk 0:00:02]}  Bf6 {[%clk 0:00:18]} 43. Rc5 {[%clk 0:00:01]}  Bh4+ {[%clk 0:00:18]} 44. Kf1 {[%clk 0:00:01]}  f2 {[%clk 0:00:16]} 45. Qc3+ {[%clk 0:00:01]}  Bf6 {[%clk 0:00:16]} 46. Qe3 {[%clk 0:00:01]}  Bg7 {[%clk 0:00:16]} 47. Rc7 {[%clk 0:00:00]}  Bb5+ {[%clk 0:00:17]} 0-1


[Site "https://www.chess.com"]